bitfinex/quotes_ETHUSD_20240731
["timestamp","ask_amount","ask_price","bid_price","bid_amount"]
[1722391604688,0.11675302,3290.6,3290.5,36.066]
[1722391604886,3.03889,3290.7,3290.5,36.066]
[1722391605425,3.15552915,3290.6,3290.5,36.066]
[1722391606125,3.15552915,3290.6,3290.5,1.066]
[1722391606931,3.03895,3290.6,3290.3,1.066]
[1722391607426,0.11657312,3290.5,3290.3,1.066]
[1722391607631,0.11657312,3290.5,3290.4,35.0]
[1722391608083,3.03887,3290.7,3290.4,35.0]
[1722391608283,0.11657312,3290.5,3290.4,35.0]
[1722391608715,3.0388,3290.8,3290.4,35.0]
[1722391608952,0.11658519,3290.7,3290.4,35.0]
[1722391609331,0.11657915,3290.6,3290.4,35.0]
[1722391609529,3.03892,3290.7,3290.4,35.0]
[1722391609936,0.11657915,3290.6,3290.4,35.0]
[1722391611323,3.15553915,3290.6,3290.4,35.0]
[1722391611522,3.03905,3290.5,3290.4,35.0]
[1722391611756,3.15538956,3290.5,3290.4,35.0]
[1722391614381,0.11633956,3290.5,3290.4,35.0]
[1722391614552,3.03893,3290.7,3290.4,35.0]
[1722391614751,0.11634444,3290.6,3290.4,35.0]
[1722391614998,3.03883,3290.8,3290.4,35.0]
[1722391615200,7.29,3291.2,3290.7,1.066]
[1722391615201,3.03855,3291.1,3290.7,1.066]
[1722391615496,7.29,3291.2,3290.5,2.2871]
[1722391615497,7.29,3291.2,3291.0,3.03858]
[1722391615791,7.29,3291.2,3291.1,1.476458]
[1722391615991,7.29,3291.2,3291.1,1.066]
[1722391616603,7.29,3291.2,3291.1,6.56269]
[1722391617410,7.29,3291.2,3291.1,9.60118]
[1722391618363,7.29,3291.2,3291.1,12.63967]
[1722391618564,3.03743,3292.3,3291.7,3.03789]
[1722391618881,0.303743,3292.2,3291.7,3.03787]
[1722391619299,0.303743,3292.2,3291.7,6.07575]
[1722391619797,0.303743,3292.2,3291.8,1.066]
[1722391620112,7.29,3292.5,3292.2,3.03747]
[1722391620314,7.29,3292.5,3292.0,1.066]
[1722391621061,3.03732,3292.4,3292.0,1.066]
[1722391621563,7.29,3292.5,3292.0,1.066]
[1722391622063,3.03746,3292.3,3291.7,3.03789]
[1722391622263,3.03746,3292.3,3291.6,6.40412]
[1722391622463,3.03759,3292.1,3291.6,6.40412]
[1722391622785,12.089629,3292.5,3291.6,2.3001]
[1722391622985,3.03769,3292.0,3291.3,5.40166]
[1722391623190,3.0375,3292.2,3291.4,1.066]
[1722391623390,3.03767,3292.0,3291.4,4.10416]
[1722391624398,3.448,3292.1,3291.4,4.10416]
[1722391625002,3.03768,3292.0,3291.4,4.10416]
[1722391625205,3.03768,3292.0,3291.4,3.03816]
[1722391625817,3.44794,3292.1,3291.6,3.03802]
[1722391626129,0.41035,3292.1,3291.4,3.03815]
[1722391626283,0.11704328,3292.0,3291.6,3.03798]
[1722391626688,3.03741,3292.3,3291.6,3.03798]
[1722391626925,0.11703725,3291.9,3291.8,3.03784]
[1722391627129,10.32727,3292.5,3292.0,3.03766]
[1722391627290,7.29,3292.5,3292.1,3.03755]
[1722391628032,7.29,3292.5,3291.9,3.03775]
[1722391628033,7.29,3292.5,3291.9,3.03768]
[1722391628216,1.032712,3292.4,3292.0,3.03764]
[1722391629193,7.29,3292.5,3292.0,3.03764]
[1722391629552,3.03729,3292.4,3291.9,3.03768]
[1722391630829,3.03739,3292.3,3291.7,2.3119]
[1722391631195,3.03748,3292.2,3291.7,3.03788]
[1722391631937,3.644957,3292.2,3291.7,3.03788]
[1722391633293,3.03735,3292.4,3291.8,3.03779]
[1722391633494,3.03713,3292.6,3291.9,6.0754]
[1722391633845,3.03721,3292.5,3291.9,3.03771]
[1722391634145,3.644644,3292.5,3291.9,3.03771]
[1722391634507,3.03739,3292.3,3291.7,3.03787]
[1722391634721,3.0375,3292.2,3291.7,3.03787]
[1722391634952,3.03732,3292.4,3291.8,3.03784]
[1722391635090,3.0374,3292.3,3291.8,3.03784]
[1722391635287,3.03725,3292.5,3291.9,3.03773]
[1722391635490,3.03711,3292.6,3292.0,5.4225]
[1722391635731,3.878278,3292.6,3292.0,5.4225]
[1722391636303,6.915468,3292.6,3292.0,5.4225]
[1722391636512,6.915458,3292.6,3292.0,5.4225]
[1722391636718,3.03721,3292.5,3292.0,5.4225]
[1722391636924,3.0373,3292.4,3291.7,5.36418]
[1722391637324,3.878278,3292.6,3292.0,3.03761]
[1722391637889,3.03725,3292.5,3292.0,3.03761]
[1722391640301,3.03725,3292.5,3291.9,3.03774]
[1722391641356,0.11700063,3292.4,3292.1,3.03756]
[1722391641697,3.878288,3292.6,3291.8,3.03779]
[1722391641950,3.03707,3292.7,3292.0,3.03757]
[1722391641951,0.1169946,3292.3,3292.0,3.03757]
[1722391642148,3.03703,3292.7,3292.0,3.03757]
[1722391642453,3.03714,3292.6,3292.0,6.07517]
[1722391642653,3.99533976,3292.6,3292.0,3.03757]
[1722391642816,3.03727,3292.5,3292.0,3.03764]
[1722391643026,0.1170107,3292.4,3292.0,3.03764]
[1722391643369,3.03705,3292.7,3292.1,3.03752]
[1722391643698,0.11702276,3292.6,3292.1,3.03752]
[1722391643897,0.66619004,3292.6,3292.1,3.03752]
[1722391644305,3.70335004,3292.6,3292.1,3.03752]
[1722391645047,3.70335004,3292.6,3291.9,3.03767]
[1722391645215,3.03744,3292.3,3291.7,3.3913]
[1722391645416,0.42078043,3292.2,3291.7,3.3913]
[1722391645619,3.15452643,3292.2,3291.7,6.42923]
[1722391647572,3.15452643,3292.2,3291.7,1.065]
[1722391647813,5.60492643,3292.2,3291.7,1.065]
[1722391648013,5.48789,3292.2,3291.7,1.065]
[1722391648165,0.1170304,3292.1,3291.7,1.065]
[1722391648673,0.1170304,3292.1,3291.7,4.10291]
[1722391648874,3.03735,3292.4,3291.8,3.03783]
[1722391649067,0.1169765,3292.0,3291.8,3.03783]
[1722391649408,6.07472,3292.4,3291.8,3.03783]
[1722391649561,0.11697046,3291.9,3291.8,3.03783]
[1722391649761,3.03741,3292.3,3291.8,3.03783]
[1722391649977,0.11697046,3291.9,3291.8,3.03783]
[1722391650175,3.03748,3292.2,3291.7,1.065]
[1722391650370,0.11697245,3291.9,3291.7,1.065]
[1722391650575,3.03748,3292.2,3291.7,1.065]
[1722391650809,0.1169684,3291.8,3291.7,1.065]
[1722391651279,3.03748,3292.2,3291.7,1.065]
[1722391651479,0.1169684,3291.8,3291.7,1.065]
[1722391651801,3.03748,3292.2,3291.7,1.065]
[1722391651979,0.1169684,3291.8,3291.7,1.065]
[1722391652176,3.03748,3292.2,3291.7,1.065]
[1722391652695,0.11698054,3292.1,3291.7,1.065]
[1722391652905,3.03748,3292.2,3291.7,1.065]
[1722391653105,0.1169765,3292.0,3291.7,1.065]
[1722391653291,3.03748,3292.2,3291.7,4.10294]
[1722391653477,0.11697046,3291.9,3291.7,4.10294]
[1722391653798,3.03748,3292.2,3291.7,4.10294]
[1722391654213,0.11698253,3292.1,3291.7,4.10294]
[1722391654507,3.03748,3292.2,3291.7,4.10294]
[1722391654713,0.1169765,3292.0,3291.7,4.10294]
[1722391654869,3.03748,3292.2,3291.7,4.10294]
[1722391655072,0.11697046,3291.9,3291.7,4.10294]
[1722391655382,3.03748,3292.2,3291.7,4.10294]
[1722391655804,0.11698253,3292.1,3291.7,4.10294]
[1722391656116,3.03748,3292.2,3291.7,4.10294]
[1722391656271,0.1169765,3292.0,3291.7,4.10294]
[1722391656466,3.03748,3292.2,3291.7,4.10294]
[1722391656666,0.11697046,3291.9,3291.7,4.10294]
[1722391656920,3.03748,3292.2,3291.7,4.10294]
[1722391657119,0.11696443,3291.8,3291.7,4.10294]
[1722391657404,3.03748,3292.2,3291.7,4.10294]
[1722391657777,0.11698253,3292.1,3291.7,4.10289]
[1722391657975,0.11698253,3292.1,3291.7,7.14074]
[1722391658179,3.03739,3292.3,3291.9,1.065]
[1722391658604,0.1169155,3292.2,3291.9,1.065]
[1722391658972,3.03739,3292.3,3291.9,1.065]
[1722391659171,0.11690947,3292.1,3291.9,1.065]
[1722391659386,3.03739,3292.3,3291.9,1.065]
[1722391659669,0.1169155,3292.2,3291.9,1.065]
[1722391660012,3.03739,3292.3,3291.9,1.065]
[1722391660227,0.11691451,3292.1,3291.9,1.065]
[1722391660370,3.03739,3292.3,3291.9,1.065]
[1722391660569,0.11690847,3292.0,3291.9,1.065]
[1722391660769,3.03739,3292.3,3291.9,1.065]
[1722391661093,3.03749,3292.2,3291.7,4.10292]
[1722391661298,3.15441054,3292.2,3291.7,4.10292]
[1722391664031,6.19195054,3292.2,3291.7,4.10292]
[1722391664194,3.15441054,3292.2,3291.7,4.10292]
[1722391666034,3.03767,3292.0,3291.6,35.0]
[1722391666230,0.65587639,3292.2,3291.6,35.0]
[1722391666437,3.03792,3291.8,3291.1,5.32488]
[1722391666608,5.27344921,3291.8,3291.1,6.38988]
[1722391666821,2.35244847,3291.7,3291.2,35.0]
[1722391666993,2.35244847,3291.7,3291.2,38.03839]
[1722391667444,0.11691926,3291.7,3291.3,3.0383]
[1722391667640,0.11691926,3291.7,3291.1,3.3514]
[1722391667848,0.11691926,3291.7,3291.1,38.3514]
[1722391668142,5.27344921,3291.8,3291.1,38.3514]
[1722391668321,3.15494322,3291.6,3291.1,41.38987]
[1722391668652,3.03803,3291.6,3291.1,41.38987]
[1722391668868,0.11690719,3291.5,3291.1,41.38987]
[1722391670759,0.11690719,3291.5,3291.1,38.3514]
[1722391670963,0.11690719,3291.5,3291.1,3.3514]
[1722391671356,0.11690719,3291.5,3291.1,38.3514]
[1722391671963,0.11690719,3291.5,3291.1,3.3514]
[1722391672521,0.11690719,3291.5,3291.1,1.065]
[1722391672721,3.15506719,3291.5,3291.1,1.065]
[1722391673860,3.03822,3291.4,3291.1,1.065]
[1722391674271,0.11679689,3291.3,3291.1,1.065]
[1722391678766,6.05154492,3291.8,3291.1,1.065]
[1722391678920,3.75981391,3291.7,3291.1,4.10341]
[1722391679120,3.75981391,3291.7,3291.1,39.10341]
[1722391680121,3.03804,3291.6,3291.1,39.10341]
[1722391680321,0.11660945,3291.5,3291.2,3.03834]
[1722391680569,6.05154492,3291.8,3291.1,36.065]
[1722391680570,3.03809,3291.6,3291.1,36.065]
[1722391680728,0.11660342,3291.4,3291.1,36.065]
[1722391680928,6.0762,3291.6,3291.1,36.065]
[1722391681132,0.11660945,3291.5,3291.1,36.065]
[1722391681370,3.15473945,3291.5,3291.1,35.0]
[1722391682638,3.03828,3291.4,3291.1,35.0]
[1722391682968,0.11660887,3291.3,3291.1,35.0]
[1722391684888,0.11660887,3291.3,3290.8,5.39871]
[1722391684889,3.03841,3291.2,3290.8,2.36]
[1722391685082,3.03841,3291.2,3290.6,4.10395]
[1722391685282,3.1550968,3291.1,3290.6,4.10395]
[1722391685515,3.1550968,3291.1,3290.6,39.10395]
[1722391686251,3.0386,3291.0,3290.6,36.065]
[1722391686410,3.03874,3290.9,3290.5,2.4003]
[1722391686604,3.15517864,3290.9,3290.5,2.4003]
[1722391686800,3.15517864,3290.9,3290.5,37.4003]
[1722391688902,3.15517864,3290.9,3290.5,36.065]
[1722391690036,0.11643864,3290.9,3290.5,36.065]
[1722391690217,0.11643864,3290.9,3290.7,1.065]
[1722391690418,6.07712,3291.1,3290.7,1.065]
[1722391690621,0.11631654,3290.8,3290.7,1.065]
[1722391691133,3.03861,3291.0,3290.5,39.10405]
[1722391691450,0.11632258,3290.9,3290.5,39.10405]
[1722391691657,3.15502258,3290.9,3290.5,36.065]
[1722391695038,6.19378258,3290.9,3290.5,36.065]
[1722391695246,3.15502258,3290.9,3290.5,36.065]
[1722391695419,0.11632258,3290.9,3290.7,1.065]
[1722391695620,0.11632258,3290.9,3290.8,5.37037]
[1722391695859,7.29,3291.5,3290.9,3.03868]
[1722391696179,0.729,3291.4,3291.0,1.065]
[1722391696479,3.03826,3291.4,3291.0,1.065]
[1722391698181,3.03833,3291.3,3291.0,1.065]
[1722391698336,3.0384,3291.2,3290.8,36.065]
[1722391699049,3.0384,3291.2,3290.8,1.065]
[1722391700124,3.03827,3291.4,3290.9,3.03862]
[1722391700351,3.03813,3291.5,3291.0,5.40027]
[1722391700924,3.03813,3291.5,3291.0,41.46527]
[1722391701130,3.03813,3291.5,3291.0,6.46527]
[1722391701131,0.11315899,3291.4,3291.0,6.46527]
[1722391701938,0.11315899,3291.4,3291.0,3.4267]
[1722391702141,3.15144899,3291.4,3291.0,2.3617]
[1722391702375,3.15144899,3291.4,3290.8,4.10375]
[1722391702376,3.15144899,3291.4,3290.8,41.41025]
[1722391703187,3.03831,3291.3,3290.8,41.41025]
[1722391703387,0.11318525,3291.2,3290.8,41.41025]
[1722391704027,0.11318525,3291.2,3290.8,6.41025]
[1722391704674,0.11318525,3291.2,3290.8,6.41022]
[1722391704975,6.07632,3291.5,3290.9,3.03868]
[1722391705172,0.11320814,3291.4,3290.9,3.03868]
[1722391706373,3.15142814,3291.4,3290.9,3.03868]
[1722391706800,3.15142814,3291.4,3291.3,5.31851]
[1722391706801,0.11320814,3291.4,3291.3,5.31851]
[1722391707252,3.03777,3291.9,3291.3,5.3185]
[1722391707584,0.10945673,3291.8,3291.3,5.3185]
[1722391707891,3.14735673,3291.8,3291.3,5.3185]
[1722391708595,0.10945673,3291.8,3291.4,3.03821]
[1722391708899,5.28762,3292.1,3291.4,3.980381]
[1722391709181,5.28762,3292.1,3291.4,3.03821]
[1722391709367,0.10950559,3292.0,3291.4,3.03821]
[1722391709571,3.03776,3291.9,3291.4,3.03821]
[1722391709734,5.28762,3292.1,3291.4,3.03821]
[1722391709735,0.10949353,3291.8,3291.5,3.03812]
[1722391709939,4.71221844,3292.4,3291.7,2.4789]
[1722391710149,0.10951333,3292.3,3292.1,3.03752]
[1722391710348,5.5183,3292.7,3291.9,4.10268]
[1722391710573,4.64703339,3292.6,3292.0,3.03765]
[1722391711089,1.60987339,3292.6,3292.1,3.03755]
[1722391711454,1.60987339,3292.6,3292.1,3.03751]
[1722391711967,1.60987339,3292.6,3292.2,3.03747]
[1722391712384,0.40910734,3292.5,3292.2,3.03747]
[1722391712686,0.10600335,3292.4,3292.3,4.10233]
[1722391712918,0.10600335,3292.4,3292.3,7.13972]
[1722391713117,7.29,3292.8,3292.7,3.03702]
[1722391713259,7.29,3292.8,3292.7,4.10202]
[1722391713599,7.29,3292.8,3292.7,1.065]
[1722391713846,8.019,3292.8,3292.7,1.065]
[1722391714171,8.019,3292.8,3292.6,3.03711]
[1722391714371,8.019,3292.8,3292.5,1.065]
[1722391714778,8.019,3292.8,3292.5,4.10216]
[1722391716169,0.10625665,3292.7,3292.5,4.10216]
[1722391716378,8.019,3292.8,3292.5,4.10216]
[1722391716575,0.10625665,3292.7,3292.5,4.10216]
[1722391716770,3.03648,3293.3,3292.5,4.10213]
[1722391716973,0.10640768,3293.2,3292.6,3.03711]
[1722391717200,2.4249,3293.4,3292.6,3.03711]
[1722391717358,0.10642419,3293.3,3292.6,3.03711]
[1722391717553,0.25313242,3293.2,3292.6,3.03711]
[1722391717767,0.10641214,3293.1,3292.6,3.03711]
[1722391719968,0.10641214,3293.1,3292.5,1.12573773]
[1722391720173,0.10641214,3293.1,3292.5,1.065]
[1722391720506,0.10641214,3293.1,3292.6,3.03711]
[1722391721304,0.10641214,3293.1,3292.3,3.03735]
[1722391721305,0.10641214,3293.1,3292.4,3.03723]
[1722391721513,0.4460276,3293.1,3292.4,3.03723]
[1722391722496,0.4460276,3293.1,3292.4,6.07445]
[1722391722708,0.4460276,3293.1,3292.4,3.03722]
[1722391722908,0.10641214,3293.1,3292.5,1.065]
[1722391724413,0.10641214,3293.1,3292.5,4.10215]
[1722391724619,0.10641214,3293.1,3292.5,1.065]
[1722391726199,0.10641214,3293.1,3292.5,4.10218]
[1722391727725,0.10641214,3293.1,3292.7,1.065]
[1722391727935,7.29,3293.6,3293.0,3.03674]
[1722391728093,1.029,3293.5,3293.1,1.065]
[1722391728881,1.029,3293.5,3292.9,1.065]
[1722391729084,1.029,3293.5,3292.9,4.10183]
[1722391729485,1.029,3293.5,3292.9,1.065]
[1722391730628,2.2947,3293.2,3292.6,5.42266]
[1722391730830,2.2947,3293.2,3292.7,1.065]
[1722391731120,0.10320208,3293.1,3292.7,1.065]
[1722391740236,0.10320208,3293.1,3292.3,2.4728]
[1722391740541,3.03677,3293.0,3292.3,3.5378]
[1722391740711,3.27656021,3293.0,3292.3,3.5378]
[1722391740910,0.10322296,3292.9,3292.3,3.5378]
[1722391741302,0.10322296,3292.9,3292.5,1.065]
[1722391741532,3.14012296,3292.9,3292.1,3.03748]
[1722391741841,3.14012296,3292.9,3291.9,1.065]
[1722391741842,2.4957,3292.4,3291.9,1.065]
[1722391742197,0.10304952,3292.3,3291.9,1.065]
[1722391743641,3.14043952,3292.3,3291.9,1.065]
[1722391743810,3.03748,3292.2,3291.7,1.065]
[1722391744017,0.10303944,3292.1,3291.7,1.065]
[1722391744550,5.53306,3292.4,3291.7,1.065]
[1722391744838,0.96008449,3292.3,3291.7,1.065]
[1722391745037,3.99747449,3292.3,3291.9,1.065]
[1722391745238,3.03748,3292.2,3291.9,1.065]
[1722391745447,3.03748,3292.2,3291.7,1.065]
[1722391745603,0.10302895,3292.1,3291.7,1.065]
[1722391745799,0.10302895,3292.1,3291.3,12.81489]
[1722391745800,0.80652195,3292.1,3291.3,9.7766]
[1722391746035,0.857031,3292.3,3291.3,9.7766]
[1722391746036,3.03756,3292.2,3291.4,1.065]
[1722391746226,3.03764,3292.1,3291.6,1.065]
[1722391746441,3.03771,3292.0,3291.6,1.065]
[1722391746942,0.10289709,3291.9,3291.6,1.065]
[1722391747140,0.10289709,3291.9,3291.3,2.3666]
[1722391747141,0.10289709,3291.9,3291.4,1.065]
[1722391747437,3.03762,3292.1,3291.4,1.065]
[1722391747637,0.10289106,3291.8,3291.4,1.065]
[1722391747856,0.303762,3292.0,3291.4,1.065]
[1722391748038,0.10288503,3291.7,3291.4,1.065]
[1722391748241,3.03783,3291.9,3291.4,1.065]
[1722391748423,0.102879,3291.6,3291.4,1.065]
[1722391748767,3.03783,3291.9,3291.4,1.065]
[1722391748768,0.10282742,3291.5,3291.4,1.065]
[1722391748972,3.03783,3291.9,3291.4,1.065]
[1722391749164,0.10283503,3291.8,3291.4,1.065]
[1722391749372,5.91165153,3291.8,3291.0,2.3109]
[1722391749519,3.03808,3291.6,3291.0,3.3759]
[1722391749718,0.10264548,3291.5,3291.0,1.065]
[1722391750016,0.10264548,3291.5,3290.8,10.44872]
[1722391750017,0.10264548,3291.5,3291.2,1.065]
[1722391750430,0.10264548,3291.5,3290.8,7.41]
[1722391750431,3.03836,3291.3,3290.8,7.41]
[1722391750635,3.03836,3291.3,3290.8,8.475]
[1722391750867,0.10256957,3291.2,3290.8,8.475]
[1722391751748,3.35221255,3291.5,3291.0,1.065]
[1722391751946,0.10257241,3291.4,3291.0,1.065]
[1722391753229,3.03799,3291.7,3291.0,1.065]
[1722391753471,3.14052435,3291.6,3291.0,1.065]
[1722391753667,3.03813,3291.5,3291.0,1.065]
[1722391754068,0.1024343,3291.4,3291.0,1.065]
[1722391754672,0.1024343,3291.4,3291.0,36.065]
[1722391755287,3.03797,3291.7,3291.0,36.065]
[1722391755473,0.10234821,3291.3,3291.2,1.065]
[1722391755676,3.03797,3291.7,3291.2,1.065]
[1722391755974,4.620235,3291.7,3291.2,1.065]
[1722391756176,0.10236931,3291.6,3291.4,1.065]
[1722391756401,10.32778,3291.9,3291.4,4.10321]
[1722391756402,7.29,3291.9,3291.4,4.10321]
[1722391756705,0.10232367,3291.8,3291.7,1.065]
[1722391757148,7.29,3291.9,3291.7,1.065]
[1722391757478,0.10239861,3291.8,3291.7,1.065]
[1722391757844,7.29,3291.9,3291.7,1.065]
[1722391758262,0.10239861,3291.8,3291.7,1.065]
[1722391758671,7.29,3291.9,3291.7,1.065]
[1722391759112,0.10239861,3291.8,3291.7,1.065]
[1722391759481,7.29,3291.9,3291.7,1.065]
[1722391759682,7.29,3291.9,3291.5,1.065]
[1722391759910,0.10239861,3291.8,3291.5,1.065]
[1722391760678,7.29,3291.9,3291.5,1.065]
[1722391760895,0.10240157,3291.7,3291.5,1.065]
[1722391761098,7.29,3291.9,3291.5,4.11401288]
[1722391761406,7.29,3291.9,3291.5,1.065]
[1722391761573,0.10239562,3291.8,3291.5,1.065]
[1722391762011,3.03758,3292.1,3291.5,1.065]
[1722391762178,0.10247901,3292.0,3291.5,1.065]
[1722391764366,0.10247901,3292.0,3291.9,1.065]
[1722391764510,7.29,3292.3,3291.9,1.065]
[1722391764933,0.1025716,3292.2,3291.9,1.065]
[1722391765133,7.29,3292.3,3291.9,1.065]
[1722391765337,0.10257413,3292.2,3291.9,1.065]
[1722391765541,7.29,3292.3,3291.9,1.065]
[1722391765855,0.10257413,3292.2,3291.9,1.065]
[1722391766212,7.29,3292.3,3291.9,1.065]
[1722391766413,0.10257413,3292.2,3291.9,1.065]
[1722391766714,7.29,3292.3,3291.9,1.065]
[1722391766715,0.1025681,3292.1,3291.9,1.065]
[1722391766912,7.29,3292.3,3291.9,1.065]
[1722391767148,0.10257413,3292.2,3291.9,1.065]
[1722391767338,7.29,3292.3,3291.9,1.065]
[1722391767542,0.10257413,3292.2,3291.9,1.065]
[1722391767859,5.39506,3292.5,3291.9,1.065]
[1722391768078,0.1025681,3292.1,3291.9,1.065]
[1722391768240,5.39506,3292.5,3291.9,1.065]
[1722391768573,0.1025862,3292.4,3291.9,1.065]
[1722391768862,3.03753,3292.2,3291.6,1.065]
[1722391769225,3.1402476,3292.1,3291.6,1.065]
[1722391771855,6.1778876,3292.1,3291.6,1.065]
[1722391772044,3.1402476,3292.1,3291.6,1.065]
[1722391774478,5.4489476,3292.1,3291.6,1.065]
[1722391774974,0.1026576,3292.1,3291.8,1.065]
[1722391775272,3.03743,3292.3,3291.8,1.065]
[1722391775579,3.03757,3292.1,3291.8,1.065]
[1722391775793,0.10265156,3292.0,3291.8,1.065]
[1722391775972,0.10265156,3292.0,3291.6,1.065]
[1722391778287,3.14034156,3292.0,3291.6,1.065]
[1722391779223,3.14034156,3292.0,3291.4,1.065]
[1722391779424,5.49472,3291.9,3291.4,1.065]
[1722391779732,0.10268252,3291.8,3291.4,1.065]
[1722391781938,3.03797,3291.7,3291.4,1.065]
[1722391782231,0.10260215,3291.6,3291.4,1.065]
[1722391782430,3.03785,3291.8,3291.4,1.065]
[1722391782635,0.10260818,3291.7,3291.4,1.065]
[1722391782793,3.03785,3291.8,3291.4,1.065]
[1722391782992,0.10260818,3291.7,3291.4,1.065]
[1722391783194,3.03785,3291.8,3291.4,1.065]
[1722391783394,0.10260215,3291.6,3291.4,1.065]
[1722391783636,3.03785,3291.8,3291.4,1.065]
[1722391783804,0.10259612,3291.5,3291.4,1.065]
[1722391784009,3.03785,3291.8,3291.4,1.065]
[1722391784204,0.10259612,3291.5,3291.4,1.065]
[1722391784412,3.03785,3291.8,3291.4,1.065]
[1722391784720,0.10259612,3291.5,3291.4,1.065]
[1722391784891,3.03785,3291.8,3291.4,1.065]
[1722391785092,0.10259612,3291.5,3291.1,35.0]
[1722391785319,3.03803,3291.6,3291.2,1.065]
[1722391785491,0.1025671,3291.4,3291.2,1.065]
[1722391785698,3.03803,3291.6,3291.2,1.065]
[1722391785894,0.10256107,3291.3,3291.2,1.065]
[1722391786205,6.07577,3291.8,3291.2,1.065]
[1722391786410,3.03775,3291.9,3291.4,1.065]
[1722391787007,3.03799,3291.7,3291.2,1.065]
[1722391787341,3.03799,3291.7,3291.4,1.065]
[1722391787634,3.03784,3291.9,3291.4,1.065]
[1722391787836,7.53353339,3292.1,3291.4,1.065]
[1722391788133,3.03779,3291.9,3291.4,1.065]
[1722391788540,7.53353339,3292.1,3291.1,41.07687]
[1722391788541,4.49589339,3292.1,3291.6,1.065]
[1722391788838,3.03758,3292.1,3291.6,1.065]
[1722391789014,3.03767,3292.0,3291.6,1.065]
[1722391791241,3.14027882,3291.9,3291.6,1.065]
[1722391791446,5.56017882,3291.9,3291.4,1.065]
[1722391792142,5.56017882,3291.9,3291.4,36.065]
[1722391792347,8.59799882,3291.9,3291.4,36.065]
[1722391792643,7.79288198,3291.9,3291.4,36.065]
[1722391793405,5.56017882,3291.9,3291.4,36.065]
[1722391794117,3.03786,3291.8,3291.4,36.065]
[1722391794542,0.10252699,3291.7,3291.4,36.065]
[1722391795059,0.10252095,3291.6,3291.4,1.065]
[1722391795232,3.03786,3291.8,3291.4,1.065]
[1722391795430,2.4199,3291.9,3291.4,1.065]
[1722391795431,0.10251492,3291.5,3291.4,1.065]
[1722391795744,3.03769,3292.0,3291.4,36.065]
[1722391795949,2.23270316,3292.1,3291.4,39.10322]
[1722391795950,0.10251492,3291.5,3291.4,39.10322]
[1722391796134,3.03762,3292.1,3291.4,39.11401288]
[1722391796303,3.03762,3292.1,3291.6,1.065]
[1722391796507,0.10252025,3292.0,3291.6,1.065]
[1722391797815,3.03767,3292.0,3291.6,1.065]
[1722391798025,0.10251421,3291.9,3291.6,1.065]
[1722391799934,3.14027421,3291.9,3291.6,1.065]
[1722391800136,3.14027421,3291.9,3291.4,36.065]
[1722391800536,5.37408774,3291.9,3291.4,36.065]
[1722391802030,3.0379,3291.8,3291.4,36.065]
[1722391802354,3.14042084,3291.8,3291.4,36.065]
[1722391802557,3.03794,3291.7,3291.4,36.065]
[1722391802988,3.1405736,3291.6,3290.9,2.4533]
[1722391803165,3.1405736,3291.6,3290.7,10.4488]
[1722391803166,0.88144011,3291.6,3290.7,7.41]
[1722391803382,0.88144011,3291.6,3290.8,1.065]
[1722391803383,3.11573162,3291.6,3290.8,1.065]
[1722391803570,5.45327,3291.0,3290.0,2.4533]
[1722391803893,5.45327,3291.0,3290.5,1.065]
[1722391804241,0.10236213,3290.9,3290.5,1.065]
[1722391804580,3.03868,3290.9,3290.5,1.065]
[1722391804959,0.10235609,3290.8,3290.5,1.065]
[1722391805698,3.14113609,3290.8,3290.5,1.065]
[1722391806794,3.03887,3290.7,3290.0,2.4533]
[1722391806997,0.10235609,3290.8,3290.5,1.065]
[1722391807160,0.10234552,3290.6,3290.5,1.065]
[1722391807366,0.1020316,3290.6,3290.5,1.065]
[1722391807813,3.03877,3290.8,3290.5,1.065]
[1722391808044,8.4919,3291.0,3290.5,1.065]
[1722391808249,3.14072921,3290.9,3290.5,1.065]
[1722391808900,0.10203921,3290.9,3290.2,38.03926]
[1722391809269,0.10203921,3290.9,3290.7,1.065]
[1722391812186,0.10203921,3290.9,3290.2,35.0]
[1722391812397,0.10203921,3290.9,3290.6,1.065]
[1722391815920,3.0385,3291.1,3290.6,1.065]
[1722391816088,0.10198148,3290.8,3290.6,1.065]
[1722391816292,3.0385,3291.1,3290.6,1.065]
[1722391816489,0.10197545,3290.7,3290.6,1.065]
[1722391816669,3.0385,3291.1,3290.6,1.065]
[1722391816870,3.873605,3291.1,3290.6,1.065]
[1722391817069,0.10199355,3291.0,3290.6,1.065]
[1722391817371,3.14064355,3291.0,3290.6,1.065]
[1722391820104,0.10199355,3291.0,3290.6,1.065]
[1722391820605,0.10199355,3291.0,3290.8,1.065]
[1722391820995,0.10099173,3290.9,3290.8,36.065]
[1722391821332,3.03831,3291.3,3290.8,39.11401288]
[1722391821538,7.29,3291.4,3290.8,1.065]
[1722391821693,0.10101236,3291.2,3290.8,1.065]
[1722391821897,0.1010184,3291.3,3290.8,1.065]
[1722391822121,3.13955633,3291.1,3290.3,5.36823]
[1722391822323,3.03859,3291.0,3290.6,1.065]
[1722391822538,3.1396207,3291.0,3290.6,1.065]
[1722391825008,0.1010307,3291.0,3290.6,1.065]
[1722391825405,0.1010307,3291.0,3290.9,5.29558]